{"text_format":"1","workbook":"xlsx","n_sheets":1,"sheets":["Lease Audit"],"not_rendered":{"charts":0,"images":11,"macros":1,"external_links":0,"defined_names":117,"comments":0,"pivot_tables":0},"unopened":[],"bounds":{"document_bytes":16777216,"sheet_cells":100000,"rows_first":2000,"rows_last":500,"rows_between":2000,"halvings":0,"cell_chars":16384,"cell_head_chars":4096},"cells_cut":0,"cells_raw":0,"read":"whole","date_system":"1900"}

{"sheet":"Lease Audit","index":0,"n_rows":27,"n_cols":179,"rows_kept":27,"cut":false,"hidden":false,"merged":[[9,1,9,31],[9,33,9,85],[11,1,14,16],[20,1,20,16],[20,17,20,26],[20,27,20,63],[20,64,20,78],[20,79,20,93],[16,79,16,93],[17,1,17,16],[17,17,17,26],[17,27,17,63],[9,87,9,117],[13,79,14,93],[13,94,14,108],[17,64,17,78],[17,79,17,93],[16,1,16,16],[16,17,16,26],[16,27,16,63],[16,64,16,78],[18,1,18,16],[18,17,18,26],[18,27,18,63],[13,124,14,138],[11,94,12,123],[11,124,12,168],[13,109,14,123],[20,94,20,108],[20,109,20,123],[20,124,20,138],[20,139,20,153],[20,154,20,168],[16,94,16,108],[16,109,16,123],[16,124,16,138],[18,94,18,108],[18,109,18,123],[16,139,16,153],[16,154,16,168],[17,94,17,108],[17,109,17,123],[17,124,17,138],[17,139,17,153],[17,154,17,168],[19,124,19,138],[19,139,19,153],[19,154,19,168],[1,1,1,171],[2,1,2,171],[4,1,4,171],[5,1,5,171],[6,1,6,171],[11,171,14,171],[13,64,14,78],[15,1,15,16],[15,64,15,78],[15,17,15,26],[15,27,15,63],[15,154,15,168],[15,79,15,93],[15,94,15,108],[15,109,15,123],[15,124,15,138],[15,139,15,153],[11,17,14,26],[11,27,14,63],[11,64,12,93],[11,169,14,169],[11,170,14,170],[13,139,14,153],[13,154,14,168],[21,139,21,153],[21,154,21,168],[21,1,21,16],[21,17,21,26],[21,27,21,63],[21,64,21,78],[21,79,21,93],[21,94,21,108],[21,109,21,123],[21,124,21,138],[18,64,18,78],[18,79,18,93],[18,139,18,153],[18,154,18,168],[19,1,19,16],[19,17,19,26],[18,124,18,138],[19,27,19,63],[19,64,19,78],[19,79,19,93],[19,94,19,108],[19,109,19,123]]}
[]
[]
[]
[]
[]
[null,"Lease Audit"]
[]
[]
[null,"Audit date:",null,null,null,null,null,null,null,null,null,null,null,null,null,null,null,null,null,null,null,null,null,null,null,null,null,null,null,null,null,null,null,"Auditor:",null,null,null,null,null,null,null,null,null,null,null,null,null,null,null,null,null,null,null,null,null,null,null,null,null,null,null,null,null,null,null,null,null,null,null,null,null,null,null,null,null,null,null,null,null,null,null,null,null,null,null,null,null,"Rent roll date:"]
[]
[]
[null,"Unit #",null,null,null,null,null,null,null,null,null,null,null,null,null,null,null,"Type (BR/BA)",null,null,null,null,null,null,null,null,null,"Tenant name(s)",null,null,null,null,null,null,null,null,null,null,null,null,null,null,null,null,null,null,null,null,null,null,null,null,null,null,null,null,null,null,null,null,null,null,null,null,"Source: Rent Roll",null,null,null,null,null,null,null,null,null,null,null,null,null,null,null,null,null,null,null,null,null,null,null,null,null,null,null,null,null,"Source: Lease",null,null,null,null,null,null,null,null,null,null,null,null,null,null,null,null,null,null,null,null,null,null,null,null,null,null,null,null,null,"Lease Dates",null,null,null,null,null,null,null,null,null,null,null,null,null,null,null,null,null,null,null,null,null,null,null,null,null,null,null,null,null,null,null,null,null,null,null,null,null,null,null,null,null,null,null,null,"Employer\n(Identify if student, military or retired)","Comments","Annual Income"]
[]
[null,null,null,null,null,null,null,null,null,null,null,null,null,null,null,null,null,null,null,null,null,null,null,null,null,null,null,null,null,null,null,null,null,null,null,null,null,null,null,null,null,null,null,null,null,null,null,null,null,null,null,null,null,null,null,null,null,null,null,null,null,null,null,null,"Monthly\nRent",null,null,null,null,null,null,null,null,null,null,null,null,null,null,"Concession Amount",null,null,null,null,null,null,null,null,null,null,null,null,null,null,"Monthly\nRent",null,null,null,null,null,null,null,null,null,null,null,null,null,null,"Concession Amount",null,null,null,null,null,null,null,null,null,null,null,null,null,null,"Original\nStart",null,null,null,null,null,null,null,null,null,null,null,null,null,null,"Current\nStart",null,null,null,null,null,null,null,null,null,null,null,null,null,null,"Current\nEnd"]
[null,null,null,null,null,null,null,null,null,null,null,null,null,null,null,null,null,null,null,null,null,null,null,null,null,null,null,null,null,null,null,null,null,null,null,null,null,null,null,null,null,null,null,null,null,null,null,null,null,null,null,null,null,null,null,null,null,null,null,null,null,null,null,null,null,null,null,null,null,null,null,null,null,null,null,null,null,null,null,null,null,null,null,null,null,null,null,null,null,null,null,null,null,null,null,null,null,null,null,null,null,null,null,null,null,null,null,null,null,null,null,null,null,null,null,null,null,null,null,null,null,null,null,null,null,null,null,null,null,null,null,null,null,null,null,null,null,null,null,null,null,null,null,null,null,null,null,null,null,null,null,null,null,null,null,null,null,null,null,null,null,null,null,null,null,null,null,null,null,null,null,null,null,{"$f":"SUM(FR16:FR22)+99","v":106}]
[null,null,null,null,null,null,null,null,null,null,null,null,null,null,null,null,null,null,null,null,null,null,null,null,null,null,null,null,null,null,null,null,null,null,null,null,null,null,null,null,null,null,null,null,null,null,null,null,null,null,null,null,null,null,null,null,null,null,null,null,null,null,null,null,null,null,null,null,null,null,null,null,null,null,null,null,null,null,null,null,null,null,null,null,null,null,null,null,null,null,null,null,null,null,null,null,null,null,null,null,null,null,null,null,null,null,null,null,null,null,null,null,null,null,null,null,null,null,null,null,null,null,null,null,null,null,null,null,null,null,null,null,null,null,null,null,null,null,null,null,null,null,null,null,null,null,null,null,null,null,null,null,null,null,null,null,null,null,null,null,null,null,null,null,null,null,null,null,null,null,null,null,null,1,1,{"$f":"IF(B16=\"\",\"\",B16)","v":""},{"$f":"IF(BM16=CQ16,\"\",\"Yes\")","v":""},{"$f":"IF(CB16=DF16,\"\",\"Yes\")","v":""},{"$f":"IF(FO16=\"\",\"\",FO16)","v":""}]
[null,null,null,null,null,null,null,null,null,null,null,null,null,null,null,null,null,null,null,null,null,null,null,null,null,null,null,null,null,null,null,null,null,null,null,null,null,null,null,null,null,null,null,null,null,null,null,null,null,null,null,null,null,null,null,null,null,null,null,null,null,null,null,null,null,null,null,null,null,null,null,null,null,null,null,null,null,null,null,null,null,null,null,null,null,null,null,null,null,null,null,null,null,null,null,null,null,null,null,null,null,null,null,null,null,null,null,null,null,null,null,null,null,null,null,null,null,null,null,null,null,null,null,null,null,null,null,null,null,null,null,null,null,null,null,null,null,null,null,null,null,null,null,null,null,null,null,null,null,null,null,null,null,null,null,null,null,null,null,null,null,null,null,null,null,null,null,null,null,null,null,null,null,1,{"$f":"SUM(FR14:FR17)","v":108},"","","",""]
[null,null,null,null,null,null,null,null,null,null,null,null,null,null,null,null,null,null,null,null,null,null,null,null,null,null,null,null,null,null,null,null,null,null,null,null,null,null,null,null,null,null,null,null,null,null,null,null,null,null,null,null,null,null,null,null,null,null,null,null,null,null,null,null,null,null,null,null,null,null,null,null,null,null,null,null,null,null,null,null,null,null,null,null,null,null,null,null,null,null,null,null,null,null,null,null,null,null,null,null,null,null,null,null,null,null,null,null,null,null,null,null,null,null,null,null,null,null,null,null,null,null,null,null,null,null,null,null,null,null,null,null,null,null,null,null,null,null,null,null,null,null,null,null,null,null,null,null,null,null,null,null,null,null,null,null,null,null,null,null,null,null,null,null,null,null,null,null,null,null,null,null,null,1,{"$f":"SUM(FR14:FR18)","v":109},"","","",""]
[null,null,null,null,null,null,null,null,null,null,null,null,null,null,null,null,null,null,null,null,null,null,null,null,null,null,null,null,null,null,null,null,null,null,null,null,null,null,null,null,null,null,null,null,null,null,null,null,null,null,null,null,null,null,null,null,null,null,null,null,null,null,null,null,null,null,null,null,null,null,null,null,null,null,null,null,null,null,null,null,null,null,null,null,null,null,null,null,null,null,null,null,null,null,null,null,null,null,null,null,null,null,null,null,null,null,null,null,null,null,null,null,null,null,null,null,null,null,null,null,null,null,null,null,null,null,null,null,null,null,null,null,null,null,null,null,null,null,null,null,null,null,null,null,null,null,null,null,null,null,null,null,null,null,null,null,null,null,null,null,null,null,null,null,null,null,null,null,null,null,null,null,null,1,{"$f":"SUM(FR14:FR19)","v":110},"","","",""]
[null,null,null,null,null,null,null,null,null,null,null,null,null,null,null,null,null,null,null,null,null,null,null,null,null,null,null,null,null,null,null,null,null,null,null,null,null,null,null,null,null,null,null,null,null,null,null,null,null,null,null,null,null,null,null,null,null,null,null,null,null,null,null,null,null,null,null,null,null,null,null,null,null,null,null,null,null,null,null,null,null,null,null,null,null,null,null,null,null,null,null,null,null,null,null,null,null,null,null,null,null,null,null,null,null,null,null,null,null,null,null,null,null,null,null,null,null,null,null,null,null,null,null,null,null,null,null,null,null,null,null,null,null,null,null,null,null,null,null,null,null,null,null,null,null,null,null,null,null,null,null,null,null,null,null,null,null,null,null,null,null,null,null,null,null,null,null,null,null,null,null,null,null,1,{"$f":"SUM(FR14:FR20)","v":111},{"$f":"IF(B20=\"\",\"\",B20)","v":""},{"$f":"IF(BM20=CQ20,\"\",\"Yes\")","v":""},{"$f":"IF(CB20=DF20,\"\",\"Yes\")","v":""},{"$f":"IF(FO20=\"\",\"\",FO20)","v":""}]
[null,null,null,null,null,null,null,null,null,null,null,null,null,null,null,null,null,null,null,null,null,null,null,null,null,null,null,null,null,null,null,null,null,null,null,null,null,null,null,null,null,null,null,null,null,null,null,null,null,null,null,null,null,null,null,null,null,null,null,null,null,null,null,null,null,null,null,null,null,null,null,null,null,null,null,null,null,null,null,null,null,null,null,null,null,null,null,null,null,null,null,null,null,null,null,null,null,null,null,null,null,null,null,null,null,null,null,null,null,null,null,null,null,null,null,null,null,null,null,null,null,null,null,null,null,null,null,null,null,null,null,null,null,null,null,null,null,null,null,null,null,null,null,null,null,null,null,null,null,null,null,null,null,null,null,null,null,null,null,null,null,null,null,null,null,null,null,null,null,null,null,null,null,1,{"$f":"SUM(FR14:FR21)","v":112},"","","",""]
[null,null,null,null,null,null,null,null,null,null,null,null,null,null,null,null,null,null,null,null,null,null,null,null,null,null,null,null,null,null,null,null,null,null,null,null,null,null,null,null,null,null,null,null,null,null,null,null,null,null,null,null,null,null,null,null,null,null,null,null,null,null,null,null,null,null,null,null,null,null,null,null,null,null,null,null,null,null,null,null,null,null,null,null,null,null,null,null,null,null,null,null,null,null,null,null,null,null,null,null,null,null,null,null,null,null,null,null,null,null,null,null,null,null,null,null,null,null,null,null,null,null,null,null,null,null,null,null,null,null,null,null,null,null,null,null,null,null,null,null,null,null,null,null,null,null,null,null,null,null,null,null,null,null,null,null,null,null,null,null,null,null,null,null,null,null,null,null,null,null,null,null,null,1,{"$f":"SUM(FR15:FR22)","v":113},"","","",""]
[]
[]
[]
[]
[null,{"$f":"rngVersionNumber","v":{"$error":"#REF!"}}]